[Event "Late-Titled-Tuesday-Blitz-October-03-2023"]
[Site "Chess.com"]
[Date "2023.10.03"]
[Round "9"]
[White "KorolDimitriy75"]
[Black "santosalberto1987"]
[Result "1-0"]
[WhiteElo "2379"]
[BlackElo "2485"]
[TimeControl "180+1"]
[EndTime "15:41:33 PDT"]
[Termination "KorolDimitriy75 won on time"]

1. d4 {[%clk 0:03:00.9]} 1... d5 {[%clk 0:02:59.7]} 2. c4 {[%clk 0:03:01.1]}
2... c6 {[%clk 0:02:59.9]} 3. Nc3 {[%clk 0:03:01.7]} 3... Nf6 {[%clk 0:03:00.2]}
4. e3 {[%clk 0:03:01.8]} 4... a6 {[%clk 0:02:59.6]} 5. h3 {[%clk 0:02:58.4]}
5... Bf5 {[%clk 0:02:59.4]} 6. Nf3 {[%clk 0:02:57.7]} 6... e6 {[%clk 0:02:59]}
7. Bd3 {[%clk 0:02:57.3]} 7... Bxd3 {[%clk 0:02:58.8]} 8. Qxd3 {[%clk
0:02:58.2]} 8... Nbd7 {[%clk 0:02:59.2]} 9. O-O {[%clk 0:02:57.9]} 9... Be7
{[%clk 0:02:58.1]} 10. e4 {[%clk 0:02:57.7]} 10... dxe4 {[%clk 0:02:58.2]} 11.
Nxe4 {[%clk 0:02:58.6]} 11... O-O {[%clk 0:02:58.6]} 12. Bf4 {[%clk 0:02:55.7]}
12... b5 {[%clk 0:02:57.7]} 13. b3 {[%clk 0:02:53.3]} 13... bxc4 {[%clk
0:02:47.7]} 14. bxc4 {[%clk 0:02:54.2]} 14... c5 {[%clk 0:02:47.9]} 15. Rad1
{[%clk 0:02:34.2]} 15... cxd4 {[%clk 0:02:47.6]} 16. Nxd4 {[%clk 0:02:21]} 16...
Rc8 {[%clk 0:02:41.7]} 17. Nd6 {[%clk 0:02:00.2]} 17... Bxd6 {[%clk 0:02:24.6]}
18. Bxd6 {[%clk 0:02:01.1]} 18... Re8 {[%clk 0:02:25]} 19. Rfe1 {[%clk
0:01:15.4]} 19... Nc5 {[%clk 0:02:23.7]} 20. Bxc5 {[%clk 0:01:10.2]} 20... Rxc5
{[%clk 0:02:24.6]} 21. Qa3 {[%clk 0:00:30.4]} 21... Qa5 {[%clk 0:02:12.1]} 22.
Qb3 {[%clk 0:00:14.5]} 22... Rec8 {[%clk 0:02:06.5]} 23. Rc1 {[%clk 0:00:10.2]}
23... Qc7 {[%clk 0:01:59.6]} 24. Nf3 {[%clk 0:00:07.5]} 24... Rxc4 {[%clk
0:01:55.9]} 25. Rxc4 {[%clk 0:00:07.4]} 25... Qxc4 {[%clk 0:01:56.8]} 26. Qb7
{[%clk 0:00:07.6]} 26... Qc6 {[%clk 0:01:51.7]} 27. Qa7 {[%clk 0:00:05.2]} 27...
Nd7 {[%clk 0:01:02.8]} 28. Rd1 {[%clk 0:00:03.4]} 28... Rc7 {[%clk 0:01:02.8]}
29. Qd4 {[%clk 0:00:02]} 29... h6 {[%clk 0:00:57.7]} 30. Ne5 {[%clk 0:00:01.8]}
30... Nxe5 {[%clk 0:00:56.9]} 31. Qxe5 {[%clk 0:00:02.7]} 31... Rd7 {[%clk
0:00:50.7]} 32. Rb1 {[%clk 0:00:01.7]} 32... Qd5 {[%clk 0:00:35.7]} 33. Rb8+
{[%clk 0:00:01.1]} 33... Kh7 {[%clk 0:00:32.7]} 34. Qb2 {[%clk 0:00:01.1]} 34...
Qd2 {[%clk 0:00:21.2]} 35. Kh2 {[%clk 0:00:01.6]} 35... Qxb2 {[%clk 0:00:20.6]}
36. Rxb2 {[%clk 0:00:02.5]} 36... Rd5 {[%clk 0:00:20.6]} 37. Rb3 {[%clk
0:00:02.2]} 37... Rd2 {[%clk 0:00:19]} 38. Ra3 {[%clk 0:00:02.6]} 38... Rxf2
{[%clk 0:00:18.8]} 39. Rxa6 {[%clk 0:00:03.2]} 39... e5 {[%clk 0:00:16.8]} 40.
Ra7 {[%clk 0:00:03.7]} 40... f5 {[%clk 0:00:16.5]} 41. Kg3 {[%clk 0:00:04.3]}
41... Rb2 {[%clk 0:00:16.1]} 42. Ra5 {[%clk 0:00:04.4]} 42... Kg6 {[%clk
0:00:08.8]} 43. h4 {[%clk 0:00:04.1]} 43... e4 {[%clk 0:00:05.7]} 44. Kf4 {[%clk
0:00:03.8]} 44... Rxg2 {[%clk 0:00:02.6]} 45. Ke5 {[%clk 0:00:02.6]} 45... Rf2
{[%clk 0:00:01.3]} 46. Ra6+ {[%clk 0:00:01.7]} 46... Kh5 {[%clk 0:00:01.1]} 47.
Ra7 {[%clk 0:00:01.8]} 47... g5 {[%clk 0:00:01.1]} 48. hxg5 {[%clk 0:00:02]}
48... hxg5 {[%clk 0:00:02]} 49. a4 {[%clk 0:00:01.8]} 49... Kg4 {[%clk
0:00:01.9]} 50. a5 {[%clk 0:00:01.8]} 50... Ra2 {[%clk 0:00:01.7]} 51. a6 {[%clk
0:00:01.6]} 51... e3 {[%clk 0:00:01.6]} 52. Kd4 {[%clk 0:00:01.4]} 52... e2
{[%clk 0:00:01.6]} 53. Re7 {[%clk 0:00:02.1]} 1-0

[Event "Late-Titled-Tuesday-Blitz-October-03-2023"]
[Site "Chess.com"]
[Date "2023.10.03"]
[Round "9"]
[White "vladislavkovalev"]
[Black "FairChess_on_YouTube"]
[Result "0-1"]
[WhiteElo "2881"]
[BlackElo "3044"]
[TimeControl "180+1"]
[EndTime "15:41:36 PDT"]
[Termination "FairChess_on_YouTube won on time"]

1. Nf3 {[%clk 0:03:00.9]} 1... b5 {[%clk 0:02:58.5]} 2. g3 {[%clk 0:03:01.1]}
2... Bb7 {[%clk 0:02:58.7]} 3. Bg2 {[%clk 0:03:01.8]} 3... Nf6 {[%clk
0:02:59.1]} 4. O-O {[%clk 0:03:02.5]} 4... e6 {[%clk 0:02:59.7]} 5. d3 {[%clk
0:03:02.8]} 5... c5 {[%clk 0:02:58.5]} 6. e4 {[%clk 0:03:02.5]} 6... d6 {[%clk
0:02:58.9]} 7. Re1 {[%clk 0:03:01.7]} 7... Be7 {[%clk 0:02:58.4]} 8. a4 {[%clk
0:02:59.7]} 8... b4 {[%clk 0:02:57.4]} 9. Nbd2 {[%clk 0:03:00.2]} 9... O-O
{[%clk 0:02:57]} 10. Nc4 {[%clk 0:03:00.8]} 10... Nc6 {[%clk 0:02:55.2]} 11. e5
{[%clk 0:02:58.1]} 11... Nxe5 {[%clk 0:02:52.8]} 12. Nfxe5 {[%clk 0:02:59]}
12... Bxg2 {[%clk 0:02:52.4]} 13. Kxg2 {[%clk 0:02:59.9]} 13... dxe5 {[%clk
0:02:52.5]} 14. Nxe5 {[%clk 0:02:56]} 14... Qd5+ {[%clk 0:02:49.1]} 15. Qf3
{[%clk 0:02:55.1]} 15... Rac8 {[%clk 0:02:46.6]} 16. b3 {[%clk 0:02:49.6]} 16...
Qxf3+ {[%clk 0:02:40]} 17. Kxf3 {[%clk 0:02:47.6]} 17... Nd5 {[%clk 0:02:39.6]}
18. Bb2 {[%clk 0:02:42.8]} 18... Bf6 {[%clk 0:02:39]} 19. Kg2 {[%clk 0:02:32.5]}
19... Rfe8 {[%clk 0:02:34.2]} 20. f4 {[%clk 0:02:32.1]} 20... Bxe5 {[%clk
0:02:32.8]} 21. Rxe5 {[%clk 0:02:32]} 21... f6 {[%clk 0:02:32.5]} 22. Re4 {[%clk
0:02:31.5]} 22... Kf7 {[%clk 0:02:32.6]} 23. Rae1 {[%clk 0:02:32]} 23... h5
{[%clk 0:02:29.3]} 24. Kf3 {[%clk 0:02:24.9]} 24... a5 {[%clk 0:02:28.7]} 25. h3
{[%clk 0:02:24.6]} 25... Rc6 {[%clk 0:02:27.5]} 26. R4e2 {[%clk 0:02:19.5]}
26... Rh8 {[%clk 0:02:25]} 27. Re4 {[%clk 0:02:17.3]} 27... Rh6 {[%clk
0:02:24.9]} 28. R4e2 {[%clk 0:02:16.8]} 28... Ne7 {[%clk 0:02:20.8]} 29. Re4
{[%clk 0:02:09.8]} 29... Nf5 {[%clk 0:02:20.8]} 30. Rg1 {[%clk 0:01:40.7]} 30...
Rh8 {[%clk 0:02:18]} 31. Rg2 {[%clk 0:01:10.6]} 31... Rd6 {[%clk 0:02:12.1]} 32.
Kf2 {[%clk 0:00:56.9]} 32... Rd5 {[%clk 0:02:10.1]} 33. Ke1 {[%clk 0:00:49.8]}
33... Nd6 {[%clk 0:02:07.1]} 34. Ree2 {[%clk 0:00:47.8]} 34... Rf5 {[%clk
0:02:07.4]} 35. Ref2 {[%clk 0:00:47.5]} 35... Rd5 {[%clk 0:02:03.9]} 36. Re2
{[%clk 0:00:45.7]} 36... Rc8 {[%clk 0:01:59.3]} 37. g4 {[%clk 0:00:42.3]} 37...
hxg4 {[%clk 0:01:58.7]} 38. hxg4 {[%clk 0:00:43.2]} 38... Re8 {[%clk 0:01:22.6]}
39. Rh2 {[%clk 0:00:43.2]} 39... Nc8 {[%clk 0:01:17.2]} 40. Rh7 {[%clk
0:00:37.6]} 40... Kg6 {[%clk 0:01:11.4]} 41. Reh2 {[%clk 0:00:35.6]} 41... Ne7
{[%clk 0:01:06.6]} 42. g5 {[%clk 0:00:18.8]} 42... Nf5 {[%clk 0:01:06.3]} 43.
gxf6 {[%clk 0:00:19.3]} 43... gxf6 {[%clk 0:01:06.7]} 44. Ra7 {[%clk 0:00:17.5]}
44... Nd4 {[%clk 0:01:06.6]} 45. Kd1 {[%clk 0:00:14.2]} 45... Kf5 {[%clk
0:00:38.2]} 46. Rxa5 {[%clk 0:00:13.3]} 46... Nf3 {[%clk 0:00:31.5]} 47. Rf2
{[%clk 0:00:10.4]} 47... Kxf4 {[%clk 0:00:29]} 48. Bxf6 {[%clk 0:00:09.6]} 48...
Rf5 {[%clk 0:00:23.7]} 49. Ke2 {[%clk 0:00:08.6]} 49... Kg3 {[%clk 0:00:23.5]}
50. Rxf3+ {[%clk 0:00:01.2]} 50... Rxf3 {[%clk 0:00:23.7]} 51. Be5+ {[%clk
0:00:02]} 51... Kg2 {[%clk 0:00:13.1]} 52. Rxc5 {[%clk 0:00:02.9]} 52... Rf5
{[%clk 0:00:12.7]} 53. d4 {[%clk 0:00:02.3]} 53... Rf3 {[%clk 0:00:07.1]} 54.
Rc7 {[%clk 0:00:02.9]} 54... Rg8 {[%clk 0:00:07.3]} 55. a5 {[%clk 0:00:02]}
55... Rg4 {[%clk 0:00:07.6]} 0-1

[Event "Late-Titled-Tuesday-Blitz-October-03-2023"]
[Site "Chess.com"]
[Date "2023.10.03"]
[Round "9"]
[White "Zq1"]
[Black "davigator"]
[Result "1/2-1/2"]
[WhiteElo "2521"]
[BlackElo "2332"]
[TimeControl "180+1"]
[EndTime "15:41:52 PDT"]
[Termination "Game drawn - timeout vs insufficient material"]

1. d4 {[%clk 0:03:00.9]} 1... Nf6 {[%clk 0:02:56.1]} 2. c4 {[%clk 0:03:00.9]}
2... e6 {[%clk 0:02:56]} 3. Nf3 {[%clk 0:02:59.7]} 3... Bb4+ {[%clk 0:02:56.3]}
4. Bd2 {[%clk 0:02:58.2]} 4... a5 {[%clk 0:02:56.6]} 5. g3 {[%clk 0:02:57.2]}
5... b6 {[%clk 0:02:56.6]} 6. Bg2 {[%clk 0:02:57.4]} 6... Ba6 {[%clk 0:02:56.6]}
7. b3 {[%clk 0:02:53.3]} 7... c6 {[%clk 0:02:56.6]} 8. O-O {[%clk 0:02:50]} 8...
O-O {[%clk 0:02:55.4]} 9. Bg5 {[%clk 0:02:44.9]} 9... Be7 {[%clk 0:02:54.1]} 10.
Nbd2 {[%clk 0:02:37.5]} 10... d5 {[%clk 0:02:53.9]} 11. Rc1 {[%clk 0:02:33]}
11... Nbd7 {[%clk 0:02:51]} 12. Qc2 {[%clk 0:02:25.2]} 12... Rc8 {[%clk
0:02:48.9]} 13. e4 {[%clk 0:02:16.7]} 13... h6 {[%clk 0:02:47.1]} 14. Bf4 {[%clk
0:02:06.2]} 14... Ba3 {[%clk 0:02:45.8]} 15. Rcd1 {[%clk 0:02:03.4]} 15... Re8
{[%clk 0:02:42.1]} 16. e5 {[%clk 0:01:55.8]} 16... Nh7 {[%clk 0:02:40.3]} 17.
Qb1 {[%clk 0:01:46]} 17... c5 {[%clk 0:02:35.9]} 18. Rfe1 {[%clk 0:01:40.1]}
18... cxd4 {[%clk 0:02:35.6]} 19. Nxd4 {[%clk 0:01:39.6]} 19... Nc5 {[%clk
0:02:28.1]} 20. Nb5 {[%clk 0:01:28.2]} 20... Bxb5 {[%clk 0:02:24.1]} 21. cxb5
{[%clk 0:01:27.7]} 21... Bb4 {[%clk 0:02:19.3]} 22. Rf1 {[%clk 0:01:26.7]} 22...
Qd7 {[%clk 0:02:17.6]} 23. Nc4 {[%clk 0:01:24.1]} 23... Qxb5 {[%clk 0:02:00.7]}
24. Nd6 {[%clk 0:01:23.8]} 24... Qd7 {[%clk 0:01:51.2]} 25. Nxe8 {[%clk
0:01:21.6]} 25... Qxe8 {[%clk 0:01:50.8]} 26. Qb2 {[%clk 0:01:19]} 26... Na6
{[%clk 0:01:45.2]} 27. Rc1 {[%clk 0:01:12.8]} 27... Rd8 {[%clk 0:01:42.3]} 28.
Rfd1 {[%clk 0:01:07.7]} 28... Qe7 {[%clk 0:01:39.7]} 29. Rc6 {[%clk 0:00:57.2]}
29... Ba3 {[%clk 0:01:38.7]} 30. Qe2 {[%clk 0:00:56]} 30... Qb7 {[%clk
0:01:34.3]} 31. Qb5 {[%clk 0:00:51.3]} 31... Bc5 {[%clk 0:01:32.6]} 32. Be3
{[%clk 0:00:46.1]} 32... Nc7 {[%clk 0:01:21.8]} 33. Rxb6 {[%clk 0:00:44.9]}
33... Bxe3 {[%clk 0:01:07.6]} 34. Rxb7 {[%clk 0:00:36.2]} 34... Nxb5 {[%clk
0:01:07.8]} 35. Rxb5 {[%clk 0:00:32.2]} 35... Ba7 {[%clk 0:01:00]} 36. Rxa5
{[%clk 0:00:31.3]} 36... Rd7 {[%clk 0:01:00.6]} 37. Rc1 {[%clk 0:00:29.2]} 37...
Ng5 {[%clk 0:00:59.1]} 38. h4 {[%clk 0:00:24.2]} 38... Ne4 {[%clk 0:00:57.4]}
39. Bxe4 {[%clk 0:00:23.1]} 39... dxe4 {[%clk 0:00:58.3]} 40. Kf1 {[%clk
0:00:19.7]} 40... e3 {[%clk 0:00:57.3]} 41. fxe3 {[%clk 0:00:18.8]} 41... Bxe3
{[%clk 0:00:57.3]} 42. Rc2 {[%clk 0:00:18.1]} 42... g5 {[%clk 0:00:54.4]} 43.
Ke2 {[%clk 0:00:17.6]} 43... Ba7 {[%clk 0:00:49.6]} 44. hxg5 {[%clk 0:00:17.8]}
44... hxg5 {[%clk 0:00:50]} 45. Ra6 {[%clk 0:00:17.5]} 45... Kg7 {[%clk
0:00:49.4]} 46. Rd6 {[%clk 0:00:17.3]} 46... Rb7 {[%clk 0:00:48.6]} 47. Rc4
{[%clk 0:00:14.9]} 47... Bb8 {[%clk 0:00:48.2]} 48. Rdc6 {[%clk 0:00:14.3]}
48... Bxe5 {[%clk 0:00:47.8]} 49. b4 {[%clk 0:00:13.7]} 49... Ra7 {[%clk
0:00:46.6]} 50. Rc2 {[%clk 0:00:10.6]} 50... Ra3 {[%clk 0:00:44.9]} 51. b5
{[%clk 0:00:10]} 51... Rxg3 {[%clk 0:00:41]} 52. b6 {[%clk 0:00:10.2]} 52... g4
{[%clk 0:00:37.5]} 53. b7 {[%clk 0:00:10.3]} 53... Ra3 {[%clk 0:00:36.4]} 54.
Rc8 {[%clk 0:00:09.2]} 54... g3 {[%clk 0:00:33.9]} 55. b8=Q {[%clk 0:00:07.9]}
55... Bxb8 {[%clk 0:00:34.3]} 56. Rxb8 {[%clk 0:00:07.8]} 56... f5 {[%clk
0:00:33.2]} 57. Rb3 {[%clk 0:00:07.3]} 57... Ra5 {[%clk 0:00:28.1]} 58. Rxg3+
{[%clk 0:00:05.4]} 58... Kf6 {[%clk 0:00:29]} 59. Rgc3 {[%clk 0:00:05]} 59... f4
{[%clk 0:00:28.6]} 60. Kf3 {[%clk 0:00:04.6]} 60... e5 {[%clk 0:00:28.1]} 61.
Ke4 {[%clk 0:00:04.7]} 61... Ra4+ {[%clk 0:00:27.6]} 62. Rc4 {[%clk 0:00:04.9]}
62... Ra3 {[%clk 0:00:27]} 63. Rc6+ {[%clk 0:00:04.8]} 63... Kg5 {[%clk
0:00:27.7]} 64. Kxe5 {[%clk 0:00:05]} 64... Re3+ {[%clk 0:00:26.7]} 65. Kd4
{[%clk 0:00:03.1]} 65... Re7 {[%clk 0:00:25.6]} 66. R6c3 {[%clk 0:00:02.9]}
66... Kg4 {[%clk 0:00:25.4]} 67. Rf2 {[%clk 0:00:02.6]} 67... Rd7+ {[%clk
0:00:24.5]} 68. Ke5 {[%clk 0:00:02.4]} 68... Re7+ {[%clk 0:00:24.5]} 69. Kd6
{[%clk 0:00:02.6]} 69... Re1 {[%clk 0:00:24.3]} 70. Rcf3 {[%clk 0:00:03]} 70...
Rd1+ {[%clk 0:00:21.7]} 71. Ke5 {[%clk 0:00:02.1]} 71... Re1+ {[%clk 0:00:21.6]}
72. Kf6 {[%clk 0:00:02.4]} 72... Re4 {[%clk 0:00:21.2]} 73. Rxf4+ {[%clk
0:00:02.4]} 73... Rxf4+ {[%clk 0:00:21.5]} 74. Rxf4+ {[%clk 0:00:01.9]} 74...
Kxf4 {[%clk 0:00:22.4]} 75. a4 {[%clk 0:00:01.8]} 75... Ke4 {[%clk 0:00:23.3]}
76. Ke6 {[%clk 0:00:01.6]} 76... Kd4 {[%clk 0:00:23.3]} 1/2-1/2

[Event "Late-Titled-Tuesday-Blitz-October-03-2023"]
[Site "Chess.com"]
[Date "2023.10.03"]
[Round "9"]
[White "Schwindle"]
[Black "HajiyevKanan"]
[Result "1/2-1/2"]
[WhiteElo "2414"]
[BlackElo "2530"]
[TimeControl "180+1"]
[EndTime "15:41:53 PDT"]
[Termination "Game drawn by repetition"]

1. e4 {[%clk 0:03:00.9]} 1... c6 {[%clk 0:03:00.9]} 2. Nf3 {[%clk 0:03:00.7]}
2... d5 {[%clk 0:03:01]} 3. Nc3 {[%clk 0:03:01.3]} 3... a6 {[%clk 0:03:01.3]} 4.
d4 {[%clk 0:02:52.4]} 4... Bg4 {[%clk 0:02:55.7]} 5. h3 {[%clk 0:02:49.6]} 5...
Bh5 {[%clk 0:02:55.4]} 6. exd5 {[%clk 0:02:45]} 6... cxd5 {[%clk 0:02:56.3]} 7.
g4 {[%clk 0:02:42.7]} 7... Bg6 {[%clk 0:02:56.8]} 8. Ne5 {[%clk 0:02:42.9]} 8...
Nc6 {[%clk 0:02:57.5]} 9. Nxc6 {[%clk 0:02:14.6]} 9... bxc6 {[%clk 0:02:57.4]}
10. h4 {[%clk 0:02:14]} 10... h5 {[%clk 0:02:57.3]} 11. Bd3 {[%clk 0:02:03.2]}
11... Bxd3 {[%clk 0:02:56]} 12. Qxd3 {[%clk 0:02:03.3]} 12... hxg4 {[%clk
0:02:56.3]} 13. Bg5 {[%clk 0:01:57.1]} 13... Qb6 {[%clk 0:02:54.3]} 14. O-O-O
{[%clk 0:01:55.4]} 14... Nf6 {[%clk 0:02:51.8]} 15. Bxf6 {[%clk 0:01:49.6]}
15... gxf6 {[%clk 0:02:52.7]} 16. Rde1 {[%clk 0:01:39.1]} 16... e6 {[%clk
0:02:42.4]} 17. Kb1 {[%clk 0:01:25.6]} 17... Kd7 {[%clk 0:02:35.2]} 18. b3
{[%clk 0:01:06.4]} 18... Bd6 {[%clk 0:02:31.5]} 19. Na4 {[%clk 0:01:04.8]} 19...
Qb4 {[%clk 0:02:28.5]} 20. c3 {[%clk 0:01:02.8]} 20... Qb8 {[%clk 0:02:24.4]}
21. Qe2 {[%clk 0:00:52.7]} 21... f5 {[%clk 0:02:23]} 22. f3 {[%clk 0:00:49.1]}
22... g3 {[%clk 0:02:19.1]} 23. h5 {[%clk 0:00:41.5]} 23... Rh6 {[%clk
0:02:16.9]} 24. Qd2 {[%clk 0:00:32.7]} 24... f4 {[%clk 0:02:07.3]} 25. Nc5+
{[%clk 0:00:21]} 25... Ke7 {[%clk 0:01:56.6]} 26. Rh4 {[%clk 0:00:15.6]} 26...
Qh8 {[%clk 0:01:51.5]} 27. Rxf4 {[%clk 0:00:14.4]} 27... Bxf4 {[%clk 0:01:48.7]}
28. Qxf4 {[%clk 0:00:14.3]} 28... Qh7+ {[%clk 0:01:28]} 29. Kb2 {[%clk
0:00:14.3]} 29... Kf8 {[%clk 0:01:21.3]} 30. Nxe6+ {[%clk 0:00:11.8]} 30... Rxe6
{[%clk 0:01:04.3]} 31. Rxe6 {[%clk 0:00:12.7]} 31... g2 {[%clk 0:01:04.7]} 32.
Re1 {[%clk 0:00:11.9]} 32... Qxh5 {[%clk 0:01:01.5]} 33. Qd6+ {[%clk 0:00:11.9]}
33... Kg8 {[%clk 0:01:00.2]} 34. Qxc6 {[%clk 0:00:11.7]} 34... Rf8 {[%clk
0:00:53.8]} 35. Qf6 {[%clk 0:00:10.5]} 35... Qg6 {[%clk 0:00:40.9]} 36. Qxg6+
{[%clk 0:00:09]} 36... fxg6 {[%clk 0:00:41.8]} 37. Rg1 {[%clk 0:00:09.2]} 37...
Rxf3 {[%clk 0:00:42.5]} 38. Rxg2 {[%clk 0:00:09.9]} 38... Kf7 {[%clk 0:00:43]}
39. Rg5 {[%clk 0:00:09.9]} 39... Rf2+ {[%clk 0:00:33.5]} 40. Ka3 {[%clk
0:00:09.7]} 40... Rc2 {[%clk 0:00:33.9]} 41. Kb4 {[%clk 0:00:09.3]} 41... Rxa2
{[%clk 0:00:33.8]} 42. Rxd5 {[%clk 0:00:09.5]} 42... Kf6 {[%clk 0:00:33.3]} 43.
Kc5 {[%clk 0:00:08.6]} 43... g5 {[%clk 0:00:33.7]} 44. Rd8 {[%clk 0:00:08]}
44... g4 {[%clk 0:00:34.1]} 45. Rf8+ {[%clk 0:00:08.1]} 45... Kg5 {[%clk
0:00:34.4]} 46. Rf1 {[%clk 0:00:08.4]} 46... g3 {[%clk 0:00:34.2]} 47. d5 {[%clk
0:00:08.8]} 47... g2 {[%clk 0:00:33.8]} 48. Rg1 {[%clk 0:00:08.8]} 48... Kf4
{[%clk 0:00:30.8]} 49. c4 {[%clk 0:00:08.3]} 49... Kf3 {[%clk 0:00:30.4]} 50.
Kc6 {[%clk 0:00:08.3]} 50... Rb2 {[%clk 0:00:29.8]} 51. d6 {[%clk 0:00:07.6]}
51... Rxb3 {[%clk 0:00:30.2]} 52. d7 {[%clk 0:00:07.9]} 52... Rd3 {[%clk
0:00:30.5]} 53. Kc7 {[%clk 0:00:07.4]} 53... a5 {[%clk 0:00:30.6]} 54. c5 {[%clk
0:00:07.5]} 54... a4 {[%clk 0:00:30.8]} 55. c6 {[%clk 0:00:08.1]} 55... Kf2
{[%clk 0:00:30.8]} 56. Rxg2+ {[%clk 0:00:08.1]} 56... Kxg2 {[%clk 0:00:31.7]}
57. d8=Q {[%clk 0:00:08.6]} 57... Rxd8 {[%clk 0:00:31.5]} 58. Kxd8 {[%clk
0:00:09.5]} 58... a3 {[%clk 0:00:32.1]} 59. c7 {[%clk 0:00:10.2]} 59... a2
{[%clk 0:00:32.8]} 60. c8=Q {[%clk 0:00:10.8]} 60... a1=Q {[%clk 0:00:33.3]} 61.
Qg4+ {[%clk 0:00:10.4]} 61... Kf2 {[%clk 0:00:33.3]} 62. Qf4+ {[%clk 0:00:10.9]}
62... Ke2 {[%clk 0:00:33.6]} 63. Qe4+ {[%clk 0:00:11.5]} 63... Kd2 {[%clk
0:00:34.1]} 64. Qd5+ {[%clk 0:00:11.6]} 64... Kc2 {[%clk 0:00:33.7]} 65. Qc4+
{[%clk 0:00:11.3]} 65... Kd2 {[%clk 0:00:33.6]} 66. Qd5+ {[%clk 0:00:11.3]}
66... Ke3 {[%clk 0:00:33.6]} 67. Qe6+ {[%clk 0:00:11.4]} 67... Kf4 {[%clk
0:00:33.6]} 68. Qf7+ {[%clk 0:00:11.4]} 68... Kg5 {[%clk 0:00:33.2]} 69. Qg8+
{[%clk 0:00:11.2]} 69... Kh6 {[%clk 0:00:33.3]} 70. Qe6+ {[%clk 0:00:11.1]}
70... Kg7 {[%clk 0:00:32.5]} 71. Qe7+ {[%clk 0:00:10.6]} 71... Kg6 {[%clk
0:00:33.2]} 72. Qd6+ {[%clk 0:00:09.8]} 72... Kf5 {[%clk 0:00:33.2]} 73. Qd7+
{[%clk 0:00:09.9]} 73... Kf6 {[%clk 0:00:32.4]} 74. Qc6+ {[%clk 0:00:08.6]}
74... Kf7 {[%clk 0:00:32.1]} 75. Qd5+ {[%clk 0:00:08.3]} 75... Kg7 {[%clk
0:00:31.1]} 76. Qg5+ {[%clk 0:00:08.1]} 76... Kf7 {[%clk 0:00:31.1]} 77. Qh5+
{[%clk 0:00:08.2]} 77... Kg8 {[%clk 0:00:31.1]} 78. Qg6+ {[%clk 0:00:08.2]}
78... Kf8 {[%clk 0:00:31.7]} 79. Qe8+ {[%clk 0:00:07.2]} 79... Kg7 {[%clk
0:00:31.7]} 80. Qe7+ {[%clk 0:00:07.7]} 80... Kg6 {[%clk 0:00:31.9]} 81. Qe8+
{[%clk 0:00:08.1]} 81... Kh7 {[%clk 0:00:31.7]} 82. Qe7+ {[%clk 0:00:08.3]}
82... Kg6 {[%clk 0:00:32.3]} 1/2-1/2